[Event "*** Titled Tuesday Blitz"]
[Site "Chess.com"]
[Date "2020.05.19"]
[Round "10"]
[White "WildTricks"]
[Black "SlavenPastar"]
[Result "0-1"]
[WhiteElo "2527"]
[BlackElo "2423"]
[TimeControl "180+1"]
[EndTime "13:57:58 PDT"]
[Termination "SlavenPastar won by resignation"]

1. Nf3 {[%clk 0:03:00.9]} 1... Nf6 {[%clk 0:02:57.7]} 2. g3 {[%clk 0:03:01.2]}
2... e6 {[%clk 0:02:57.3]} 3. Bg2 {[%clk 0:03:01.3]} 3... d5 {[%clk 0:02:58]} 4.
O-O {[%clk 0:03:02.2]} 4... Be7 {[%clk 0:02:58.4]} 5. c4 {[%clk 0:03:03]} 5...
O-O {[%clk 0:02:58.4]} 6. d4 {[%clk 0:03:03.2]} 6... dxc4 {[%clk 0:02:58.9]} 7.
Ne5 {[%clk 0:03:03.5]} 7... Nc6 {[%clk 0:02:59.5]} 8. Nxc6 {[%clk 0:03:03.6]}
8... bxc6 {[%clk 0:03:00.4]} 9. Na3 {[%clk 0:03:04.4]} 9... Bxa3 {[%clk
0:02:59]} 10. bxa3 {[%clk 0:03:05.3]} 10... Ba6 {[%clk 0:02:57.1]} 11. a4 {[%clk
0:03:04.7]} 11... Rb8 {[%clk 0:02:50.3]} 12. Ba3 {[%clk 0:03:02.3]} 12... Re8
{[%clk 0:02:48.3]} 13. Qd2 {[%clk 0:03:02]} 13... Nd5 {[%clk 0:02:39.9]} 14. Qa5
{[%clk 0:02:59]} 14... Rb6 {[%clk 0:02:33.7]} 15. Bc5 {[%clk 0:02:58.5]} 15...
Qc8 {[%clk 0:02:26.3]} 16. e4 {[%clk 0:02:53.5]} 16... Nf6 {[%clk 0:02:05.8]}
17. Bxb6 {[%clk 0:02:31.7]} 17... cxb6 {[%clk 0:02:06.7]} 18. Qc3 {[%clk
0:02:31.6]} 18... b5 {[%clk 0:01:55.1]} 19. axb5 {[%clk 0:02:30]} 19... cxb5
{[%clk 0:01:56]} 20. a4 {[%clk 0:02:30.5]} 20... Bb7 {[%clk 0:01:34.8]} 21. Rfe1
{[%clk 0:02:13.1]} 21... a6 {[%clk 0:01:33.1]} 22. Rab1 {[%clk 0:02:11.1]} 22...
Bc6 {[%clk 0:01:23.6]} 23. e5 {[%clk 0:01:11.4]} 23... Bxg2 {[%clk 0:01:03]} 24.
exf6 {[%clk 0:00:52.1]} 24... Qc6 {[%clk 0:00:56.9]} 25. axb5 {[%clk 0:00:39.9]}
25... axb5 {[%clk 0:00:57.8]} 26. d5 {[%clk 0:00:32.8]} 26... Bxd5 {[%clk
0:00:29.4]} 27. Qd2 {[%clk 0:00:18.1]} 27... gxf6 {[%clk 0:00:24.4]} 28. f4
{[%clk 0:00:14.4]} 28... c3 {[%clk 0:00:20.2]} 29. Qe2 {[%clk 0:00:10.2]} 29...
c2 {[%clk 0:00:15.3]} 30. Rbc1 {[%clk 0:00:07.5]} 30... Rc8 {[%clk 0:00:15.6]}
31. Qg4+ {[%clk 0:00:05.9]} 31... Kf8 {[%clk 0:00:16.1]} 32. Qh4 {[%clk
0:00:06.4]} 32... Qc5+ {[%clk 0:00:12.5]} 33. Kf1 {[%clk 0:00:05.3]} 33... Qc4+
{[%clk 0:00:11.7]} 34. Kg1 {[%clk 0:00:05.6]} 34... Qd4+ {[%clk 0:00:11.6]} 35.
Kf1 {[%clk 0:00:05.9]} 35... Bc4+ {[%clk 0:00:11.2]} 36. Kg2 {[%clk 0:00:06.3]}
36... Bd5+ {[%clk 0:00:06.3]} 37. Kh3 {[%clk 0:00:06.5]} 37... Ke7 {[%clk
0:00:04.8]} 38. Qh5 {[%clk 0:00:05]} 38... Qd2 {[%clk 0:00:02.5]} 39. Rg1 {[%clk
0:00:02.6]} 39... b4 {[%clk 0:00:01.3]} 40. Qxh7 {[%clk 0:00:02.8]} 40... b3
{[%clk 0:00:01.8]} 41. Rce1 {[%clk 0:00:02.5]} 41... Qxe1 {[%clk 0:00:01.5]} 42.
Rxe1 {[%clk 0:00:02.6]} 42... b2 {[%clk 0:00:02.1]} 43. Rxe6+ {[%clk 0:00:03.1]}
43... Bxe6+ {[%clk 0:00:01.4]} 44. Kh4 {[%clk 0:00:02.9]} 44... c1=Q {[%clk
0:00:02.3]} 45. Qe4 {[%clk 0:00:03.3]} 45... Qxf4+ {[%clk 0:00:02.9]} 46. Qxf4
{[%clk 0:00:03.7]} 46... b1=Q {[%clk 0:00:03.5]} 47. Qh6 {[%clk 0:00:04.4]}
47... Qg6 {[%clk 0:00:03.7]} 48. Qf4 {[%clk 0:00:04.4]} 48... Qg5+ {[%clk
0:00:03.9]} 49. Qxg5 {[%clk 0:00:03.5]} 49... fxg5+ {[%clk 0:00:04.8]} 50. Kxg5
{[%clk 0:00:04.4]} 50... Rg8+ {[%clk 0:00:05.7]} 51. Kh4 {[%clk 0:00:05.3]}
51... Rh8+ {[%clk 0:00:06.6]} 52. Kg5 {[%clk 0:00:05.8]} 52... Rxh2 {[%clk
0:00:07.5]} 53. Kf4 {[%clk 0:00:06.7]} 53... Rf2+ {[%clk 0:00:07.8]} 54. Ke3
{[%clk 0:00:06.6]} 54... Rf6 {[%clk 0:00:08.7]} 55. g4 {[%clk 0:00:06.8]} 55...
Rg6 {[%clk 0:00:09.6]} 56. g5 {[%clk 0:00:07.7]} 56... Rxg5 {[%clk 0:00:09.7]}
57. Kd4 {[%clk 0:00:08.6]} 57... Rd5+ {[%clk 0:00:09.6]} 0-1

[Event "*** Titled Tuesday Blitz"]
[Site "Chess.com"]
[Date "2020.05.19"]
[Round "10"]
[White "sergeikim"]
[Black "agrigo3"]
[Result "1-0"]
[WhiteElo "2377"]
[BlackElo "2261"]
[TimeControl "180+1"]
[EndTime "13:57:59 PDT"]
[Termination "sergeikim won by resignation"]

1. d4 {[%clk 0:03:00.9]} 1... d6 {[%clk 0:02:59.8]} 2. c4 {[%clk 0:03:00.3]}
2... e5 {[%clk 0:02:58.2]} 3. Nf3 {[%clk 0:02:59.3]} 3... e4 {[%clk 0:02:57.1]}
4. Ng5 {[%clk 0:02:58.5]} 4... f5 {[%clk 0:02:57.5]} 5. Nc3 {[%clk 0:02:57.6]}
5... Be7 {[%clk 0:02:57.6]} 6. h4 {[%clk 0:02:57.3]} 6... Nf6 {[%clk 0:02:57.7]}
7. Bf4 {[%clk 0:02:55.6]} 7... h6 {[%clk 0:02:42.7]} 8. Nh3 {[%clk 0:02:54.3]}
8... c6 {[%clk 0:02:26.1]} 9. e3 {[%clk 0:02:53.8]} 9... Na6 {[%clk 0:02:23.1]}
10. Be2 {[%clk 0:02:50.9]} 10... O-O {[%clk 0:02:20.4]} 11. h5 {[%clk
0:02:47.7]} 11... Nc7 {[%clk 0:02:19.2]} 12. O-O {[%clk 0:02:44.7]} 12... Be6
{[%clk 0:02:14.4]} 13. b4 {[%clk 0:02:34.4]} 13... Bf7 {[%clk 0:02:09.7]} 14. a4
{[%clk 0:02:24.4]} 14... Qe8 {[%clk 0:01:52.2]} 15. c5 {[%clk 0:02:20.2]} 15...
Rd8 {[%clk 0:01:52.1]} 16. cxd6 {[%clk 0:02:16.8]} 16... Bxd6 {[%clk 0:01:52.2]}
17. Bxd6 {[%clk 0:02:16.6]} 17... Rxd6 {[%clk 0:01:52.2]} 18. Nf4 {[%clk
0:02:16.5]} 18... Ne6 {[%clk 0:01:48]} 19. Nxe6 {[%clk 0:02:04.2]} 19... Bxe6
{[%clk 0:01:39.9]} 20. b5 {[%clk 0:02:01.1]} 20... Bf7 {[%clk 0:01:36.9]} 21. a5
{[%clk 0:01:53.2]} 21... Bxh5 {[%clk 0:01:28.9]} 22. a6 {[%clk 0:01:53]} 22...
Bxe2 {[%clk 0:01:24.8]} 23. Qxe2 {[%clk 0:01:50.7]} 23... Qe7 {[%clk 0:00:53]}
24. Rfb1 {[%clk 0:01:14.9]} 24... cxb5 {[%clk 0:00:20.7]} 25. axb7 {[%clk
0:01:12.3]} 25... Qxb7 {[%clk 0:00:19]} 26. Nxb5 {[%clk 0:01:10.6]} 26... Rb6
{[%clk 0:00:18.6]} 27. Rxa7 {[%clk 0:01:07.7]} 27... Qb8 {[%clk 0:00:18.7]} 28.
Qa2+ {[%clk 0:01:06.9]} 28... Kh7 {[%clk 0:00:17.8]} 29. Ra5 {[%clk 0:00:59.3]}
29... Rd8 {[%clk 0:00:14.4]} 30. Nc3 {[%clk 0:00:55.7]} 30... Rxb1+ {[%clk
0:00:13]} 31. Qxb1 {[%clk 0:00:55.6]} 31... Qxb1+ {[%clk 0:00:12.5]} 32. Nxb1
{[%clk 0:00:55.4]} 32... Kg6 {[%clk 0:00:12.4]} 33. Nd2 {[%clk 0:00:52.7]} 33...
Rc8 {[%clk 0:00:11.6]} 34. Nb3 {[%clk 0:00:47.8]} 34... Rc3 {[%clk 0:00:10.9]}
35. Nc5 {[%clk 0:00:46.1]} 35... Rc1+ {[%clk 0:00:10]} 36. Kh2 {[%clk
0:00:44.8]} 36... h5 {[%clk 0:00:07.4]} 37. Ne6 {[%clk 0:00:38.6]} 37... h4
{[%clk 0:00:07.2]} 38. f3 {[%clk 0:00:36.2]} 38... exf3 {[%clk 0:00:05]} 39.
gxf3 {[%clk 0:00:35.7]} 39... Re1 {[%clk 0:00:05]} 40. Ra7 {[%clk 0:00:30]}
40... Rxe3 {[%clk 0:00:03.3]} 41. Rxg7+ {[%clk 0:00:27.4]} 41... Kh6 {[%clk
0:00:03.6]} 42. Re7 {[%clk 0:00:26.5]} 42... Re2+ {[%clk 0:00:03.1]} 43. Kh3
{[%clk 0:00:24.7]} 43... Re1 {[%clk 0:00:03.5]} 44. Kg2 {[%clk 0:00:19]} 44...
Nd5 {[%clk 0:00:03.5]} 45. Re8 {[%clk 0:00:16.1]} 45... Rxe6 {[%clk 0:00:03.5]}
46. Rxe6+ {[%clk 0:00:14.8]} 46... Kg5 {[%clk 0:00:01.7]} 47. Rd6 {[%clk
0:00:14.2]} 47... Nf4+ {[%clk 0:00:01.8]} 48. Kh2 {[%clk 0:00:13.9]} 48... h3
{[%clk 0:00:01.9]} 49. Rd8 {[%clk 0:00:13.6]} 49... Kf6 {[%clk 0:00:01.5]} 50.
Kg3 {[%clk 0:00:13]} 50... Kg5 {[%clk 0:00:01.4]} 51. Rg8+ {[%clk 0:00:11.5]}
51... Ng6 {[%clk 0:00:01.4]} 52. Kxh3 {[%clk 0:00:11.4]} 52... Kf6 {[%clk
0:00:01.8]} 53. Kg3 {[%clk 0:00:10.8]} 53... Kf7 {[%clk 0:00:02.1]} 54. Rxg6
{[%clk 0:00:10.8]} 54... Kxg6 {[%clk 0:00:02.5]} 55. Kf4 {[%clk 0:00:10.6]}
55... Kf6 {[%clk 0:00:03.4]} 56. d5 {[%clk 0:00:10.8]} 56... Kg6 {[%clk
0:00:03.5]} 57. Ke5 {[%clk 0:00:10.9]} 57... Kg5 {[%clk 0:00:04]} 58. d6 {[%clk
0:00:10.2]} 58... Kg6 {[%clk 0:00:03.6]} 59. d7 {[%clk 0:00:10.6]} 59... Kf7
{[%clk 0:00:03.7]} 60. d8=Q {[%clk 0:00:11]} 1-0

[Event "*** Titled Tuesday Blitz"]
[Site "Chess.com"]
[Date "2020.05.19"]
[Round "10"]
[White "chenxiaoyuer"]
[Black "Andro2"]
[Result "1-0"]
[WhiteElo "2313"]
[BlackElo "2406"]
[TimeControl "180+1"]
[EndTime "13:58:05 PDT"]
[Termination "chenxiaoyuer won on time"]

1. e4 {[%clk 0:03:00.9]} 1... c5 {[%clk 0:02:56.8]} 2. Nf3 {[%clk 0:03:00.6]}
2... d6 {[%clk 0:02:57.4]} 3. d4 {[%clk 0:03:00.3]} 3... cxd4 {[%clk 0:02:57.2]}
4. Nxd4 {[%clk 0:03:00.3]} 4... Nf6 {[%clk 0:02:57.4]} 5. Nc3 {[%clk 0:03:00.3]}
5... a6 {[%clk 0:02:57.7]} 6. Be2 {[%clk 0:03:00.2]} 6... e5 {[%clk 0:02:56.4]}
7. Nb3 {[%clk 0:03:00]} 7... Be7 {[%clk 0:02:56.5]} 8. O-O {[%clk 0:03:00.2]}
8... O-O {[%clk 0:02:56.1]} 9. Kh1 {[%clk 0:03:00.6]} 9... Be6 {[%clk
0:02:56.1]} 10. f4 {[%clk 0:03:00.5]} 10... Qc7 {[%clk 0:02:55.3]} 11. f5 {[%clk
0:02:59.7]} 11... Bc4 {[%clk 0:02:54.8]} 12. g4 {[%clk 0:02:59.7]} 12... d5
{[%clk 0:02:49.4]} 13. g5 {[%clk 0:02:54.1]} 13... Nxe4 {[%clk 0:02:46.7]} 14.
Nxe4 {[%clk 0:02:54]} 14... dxe4 {[%clk 0:02:45.3]} 15. f6 {[%clk 0:02:53.7]}
15... Bd8 {[%clk 0:02:24.8]} 16. fxg7 {[%clk 0:02:49.3]} 16... Re8 {[%clk
0:02:24.7]} 17. Be3 {[%clk 0:02:40.2]} 17... Bxe2 {[%clk 0:02:21.1]} 18. Qxe2
{[%clk 0:02:39.5]} 18... Nc6 {[%clk 0:02:21.3]} 19. Rg1 {[%clk 0:02:30.5]} 19...
Be7 {[%clk 0:02:13.6]} 20. Rg3 {[%clk 0:02:29.4]} 20... Qd7 {[%clk 0:01:59.1]}
21. Qh5 {[%clk 0:02:20.8]} 21... Qf5 {[%clk 0:01:57.6]} 22. Kg1 {[%clk
0:01:59.6]} 22... Rad8 {[%clk 0:01:56.1]} 23. Rf1 {[%clk 0:01:57.9]} 23... Qg6
{[%clk 0:01:56.4]} 24. Qg4 {[%clk 0:01:53.6]} 24... Nd4 {[%clk 0:01:50.2]} 25.
Rg2 {[%clk 0:01:17.4]} 25... Kxg7 {[%clk 0:01:27.9]} 26. Bxd4 {[%clk 0:00:51.7]}
26... exd4 {[%clk 0:01:24.1]} 27. Rgf2 {[%clk 0:00:51.6]} 27... Rf8 {[%clk
0:01:16.9]} 28. Rf6 {[%clk 0:00:48.9]} 28... Bxf6 {[%clk 0:01:04.7]} 29. Rxf6
{[%clk 0:00:48.2]} 29... d3 {[%clk 0:00:52.5]} 30. Rxg6+ {[%clk 0:00:36.3]}
30... hxg6 {[%clk 0:00:50.5]} 31. cxd3 {[%clk 0:00:32.2]} 31... exd3 {[%clk
0:00:50.5]} 32. Nd2 {[%clk 0:00:29.5]} 32... Rfe8 {[%clk 0:00:49.3]} 33. Qf4
{[%clk 0:00:28]} 33... Kg8 {[%clk 0:00:40]} 34. Kf2 {[%clk 0:00:16.1]} 34...
Re2+ {[%clk 0:00:39.3]} 35. Kf3 {[%clk 0:00:15]} 35... Rd5 {[%clk 0:00:36.4]}
36. Kg3 {[%clk 0:00:08.7]} 36... Rf5 {[%clk 0:00:21.9]} 37. Qb8+ {[%clk
0:00:08.3]} 37... Kh7 {[%clk 0:00:21.3]} 38. Nc4 {[%clk 0:00:04.9]} 38... d2
{[%clk 0:00:19.7]} 39. Qd6 {[%clk 0:00:04.5]} 39... Rxg5+ {[%clk 0:00:09.2]} 40.
Kf3 {[%clk 0:00:04.4]} 40... Reg2 {[%clk 0:00:08.8]} 41. Nxd2 {[%clk 0:00:04]}
41... Rg1 {[%clk 0:00:08.6]} 42. Ne4 {[%clk 0:00:03.8]} 42... Rf5+ {[%clk
0:00:09]} 43. Ke3 {[%clk 0:00:04]} 43... Re1+ {[%clk 0:00:08.2]} 44. Kd2 {[%clk
0:00:01.5]} 44... Rxe4 {[%clk 0:00:08]} 45. Qc7 {[%clk 0:00:01.2]} 45... Rd5+
{[%clk 0:00:03.9]} 46. Kc3 {[%clk 0:00:01.1]} 46... b5 {[%clk 0:00:03.7]} 47.
Qxf7+ {[%clk 0:00:01.1]} 47... Kh6 {[%clk 0:00:04.1]} 48. Qxd5 {[%clk
0:00:01.4]} 48... Rc4+ {[%clk 0:00:04.7]} 49. Kb3 {[%clk 0:00:01.3]} 49... Rh4
{[%clk 0:00:04.6]} 50. Qf3 {[%clk 0:00:01.4]} 50... g5 {[%clk 0:00:03.7]} 51.
Qg3 {[%clk 0:00:01.4]} 51... Kh5 {[%clk 0:00:03]} 52. a3 {[%clk 0:00:01.6]}
52... g4 {[%clk 0:00:03.3]} 53. Ka2 {[%clk 0:00:01.9]} 53... Rh3 {[%clk
0:00:03.6]} 54. Qe5+ {[%clk 0:00:02.2]} 54... Kh4 {[%clk 0:00:04]} 55. Qh8+
{[%clk 0:00:02.1]} 55... Kg5 {[%clk 0:00:04.1]} 56. Qg7+ {[%clk 0:00:02.5]}
56... Kf4 {[%clk 0:00:04.1]} 57. Qf6+ {[%clk 0:00:02.7]} 57... Ke3 {[%clk
0:00:04.3]} 58. Qg5+ {[%clk 0:00:02.9]} 58... Kf3 {[%clk 0:00:04.2]} 59. Qf5+
{[%clk 0:00:03.4]} 59... Kg2 {[%clk 0:00:04.4]} 60. Qxg4+ {[%clk 0:00:03.6]}
60... Kxh2 {[%clk 0:00:05.3]} 61. Qe6 {[%clk 0:00:03.6]} 61... a5 {[%clk
0:00:03.4]} 62. Qd5 {[%clk 0:00:03.5]} 62... b4 {[%clk 0:00:02.5]} 63. axb4
{[%clk 0:00:02.4]} 63... axb4 {[%clk 0:00:02.1]} 64. Qd6+ {[%clk 0:00:02.8]} 1-0

[Event "*** Titled Tuesday Blitz"]
[Site "Chess.com"]
[Date "2020.05.19"]
[Round "10"]
[White "ClassyEl"]
[Black "GjakanTati"]
[Result "1/2-1/2"]
[WhiteElo "2510"]
[BlackElo "2637"]
[TimeControl "180+1"]
[EndTime "13:58:07 PDT"]
[Termination "Game drawn - insufficient material"]

1. d4 {[%clk 0:03:00.9]} 1... d5 {[%clk 0:02:57.9]} 2. Nf3 {[%clk 0:03:00.8]}
2... Nf6 {[%clk 0:02:57.8]} 3. c4 {[%clk 0:03:00]} 3... e6 {[%clk 0:02:57.6]} 4.
e3 {[%clk 0:03:00.1]} 4... b6 {[%clk 0:02:54.7]} 5. Nbd2 {[%clk 0:02:57.4]} 5...
Bb7 {[%clk 0:02:54.5]} 6. Bd3 {[%clk 0:02:57.8]} 6... Bd6 {[%clk 0:02:52.6]} 7.
O-O {[%clk 0:02:57.8]} 7... O-O {[%clk 0:02:51.2]} 8. b3 {[%clk 0:02:58.3]} 8...
Nbd7 {[%clk 0:02:49.1]} 9. Bb2 {[%clk 0:02:58.6]} 9... c5 {[%clk 0:02:48.2]} 10.
Ne5 {[%clk 0:02:48.6]} 10... Qe7 {[%clk 0:02:41.1]} 11. Qe2 {[%clk 0:02:48.6]}
11... Rfd8 {[%clk 0:02:26.7]} 12. Rfd1 {[%clk 0:02:47.9]} 12... Nf8 {[%clk
0:02:16.7]} 13. Nf1 {[%clk 0:02:47.8]} 13... Ng6 {[%clk 0:02:16.2]} 14. Ng3
{[%clk 0:02:46.8]} 14... Ne4 {[%clk 0:02:07.1]} 15. cxd5 {[%clk 0:02:34.4]}
15... exd5 {[%clk 0:02:05.5]} 16. Nf5 {[%clk 0:02:23]} 16... Qe6 {[%clk
0:01:44.3]} 17. Bxe4 {[%clk 0:02:11.2]} 17... dxe4 {[%clk 0:01:41.6]} 18. Nxd6
{[%clk 0:02:06.1]} 18... Rxd6 {[%clk 0:01:36.9]} 19. Nxg6 {[%clk 0:02:02.2]}
19... hxg6 {[%clk 0:01:26.1]} 20. dxc5 {[%clk 0:02:02.2]} 20... bxc5 {[%clk
0:01:21.8]} 21. Rxd6 {[%clk 0:01:30.8]} 21... Qxd6 {[%clk 0:01:22.7]} 22. Rd1
{[%clk 0:01:30.9]} 22... Qc6 {[%clk 0:01:22.2]} 23. Qc4 {[%clk 0:01:24.9]} 23...
Ba6 {[%clk 0:01:18.6]} 24. Qc3 {[%clk 0:01:23.8]} 24... f6 {[%clk 0:01:18.3]}
25. Rc1 {[%clk 0:01:19.5]} 25... Rc8 {[%clk 0:01:13]} 26. Qa5 {[%clk 0:01:09.4]}
26... Qb6 {[%clk 0:01:05.9]} 27. Qa4 {[%clk 0:01:05.7]} 27... Bd3 {[%clk
0:01:00.1]} 28. h3 {[%clk 0:01:04]} 28... Qb7 {[%clk 0:00:54.9]} 29. Ba3 {[%clk
0:01:01]} 29... Qb6 {[%clk 0:00:41.9]} 30. Qd7 {[%clk 0:01:00.8]} 30... Rc7
{[%clk 0:00:41.7]} 31. Qd5+ {[%clk 0:00:53]} 31... Kh7 {[%clk 0:00:41.5]} 32.
Bxc5 {[%clk 0:00:45.1]} 32... Qa5 {[%clk 0:00:35.8]} 33. b4 {[%clk 0:00:45.2]}
33... Qa3 {[%clk 0:00:34.8]} 34. Rd1 {[%clk 0:00:24.1]} 34... a5 {[%clk
0:00:29.8]} 35. h4 {[%clk 0:00:21.4]} 35... Qa4 {[%clk 0:00:24.9]} 36. Re1
{[%clk 0:00:18.5]} 36... axb4 {[%clk 0:00:23.3]} 37. h5 {[%clk 0:00:18.2]} 37...
Qb5 {[%clk 0:00:20.1]} 38. hxg6+ {[%clk 0:00:18.3]} 38... Kxg6 {[%clk
0:00:19.6]} 39. Rc1 {[%clk 0:00:18.7]} 39... Rd7 {[%clk 0:00:17]} 40. Qe6 {[%clk
0:00:14.7]} 40... Qa4 {[%clk 0:00:17]} 41. g4 {[%clk 0:00:13.6]} 41... Rb7
{[%clk 0:00:14]} 42. Bd4 {[%clk 0:00:12.2]} 42... Qd7 {[%clk 0:00:13.3]} 43.
Qxd7 {[%clk 0:00:07.3]} 43... Rxd7 {[%clk 0:00:14.2]} 44. Rc8 {[%clk 0:00:06.1]}
44... Be2 {[%clk 0:00:14]} 45. Rb8 {[%clk 0:00:05.5]} 45... Rc7 {[%clk
0:00:13.5]} 46. Rxb4 {[%clk 0:00:04.8]} 46... Kg5 {[%clk 0:00:14]} 47. Rb1
{[%clk 0:00:02.9]} 47... Kxg4 {[%clk 0:00:14]} 48. a4 {[%clk 0:00:03.4]} 48...
Rc8 {[%clk 0:00:11.3]} 49. a5 {[%clk 0:00:03.7]} 49... Ra8 {[%clk 0:00:11]} 50.
Ra1 {[%clk 0:00:03.3]} 50... Bf3 {[%clk 0:00:11.2]} 51. Kf1 {[%clk 0:00:03.5]}
51... Rh8 {[%clk 0:00:10.8]} 52. Ke1 {[%clk 0:00:01.6]} 52... Rh2 {[%clk
0:00:09.5]} 53. Kd2 {[%clk 0:00:02.5]} 53... Rxf2+ {[%clk 0:00:09.4]} 54. Kc3
{[%clk 0:00:03.4]} 54... Be2 {[%clk 0:00:09.4]} 55. a6 {[%clk 0:00:04.1]} 55...
Bxa6 {[%clk 0:00:07.1]} 56. Rxa6 {[%clk 0:00:05]} 56... f5 {[%clk 0:00:06.2]}
57. Bxg7 {[%clk 0:00:04.4]} 57... f4 {[%clk 0:00:06]} 58. exf4 {[%clk
0:00:04.8]} 58... e3 {[%clk 0:00:05.9]} 59. Bd4 {[%clk 0:00:05.7]} 59... Rf3
{[%clk 0:00:04.1]} 60. Kd3 {[%clk 0:00:05.6]} 60... Kxf4 {[%clk 0:00:03.3]} 61.
Rf6+ {[%clk 0:00:04.5]} 61... Kg3 {[%clk 0:00:03.7]} 62. Rxf3+ {[%clk 0:00:04]}
62... Kxf3 {[%clk 0:00:04]} 63. Bxe3 {[%clk 0:00:04.9]} 1/2-1/2

[Event "*** Titled Tuesday Blitz"]
[Site "Chess.com"]
[Date "2020.05.19"]
[Round "10"]
[White "Roman_Ovetchkin"]
[Black "RubensCezila"]
[Result "1/2-1/2"]
[WhiteElo "2635"]
[BlackElo "2488"]
[TimeControl "180+1"]
[EndTime "13:58:07 PDT"]
[Termination "Game drawn by repetition"]

1. d4 {[%clk 0:03:00.9]} 1... Nf6 {[%clk 0:02:59.6]} 2. c4 {[%clk 0:03:00.9]}
2... g6 {[%clk 0:02:59.5]} 3. Nc3 {[%clk 0:03:01.5]} 3... Bg7 {[%clk 0:03:00]}
4. e4 {[%clk 0:03:02.1]} 4... d6 {[%clk 0:03:00.5]} 5. Nf3 {[%clk 0:03:02.1]}
5... O-O {[%clk 0:03:00.7]} 6. Be2 {[%clk 0:03:01.9]} 6... Na6 {[%clk
0:03:00.6]} 7. Bg5 {[%clk 0:02:58.5]} 7... h6 {[%clk 0:02:59.9]} 8. Be3 {[%clk
0:02:56.5]} 8... c5 {[%clk 0:02:58.9]} 9. d5 {[%clk 0:02:49.9]} 9... e6 {[%clk
0:02:45.7]} 10. Nd2 {[%clk 0:02:49.3]} 10... Nc7 {[%clk 0:02:40.4]} 11. O-O
{[%clk 0:02:40.5]} 11... Rb8 {[%clk 0:02:38.3]} 12. Rb1 {[%clk 0:02:29.7]} 12...
exd5 {[%clk 0:02:37.1]} 13. cxd5 {[%clk 0:02:21.4]} 13... b5 {[%clk 0:02:36.4]}
14. b4 {[%clk 0:02:17.7]} 14... cxb4 {[%clk 0:02:31.9]} 15. Rxb4 {[%clk
0:02:16.9]} 15... a5 {[%clk 0:02:24.9]} 16. Rb3 {[%clk 0:02:08.6]} 16... b4
{[%clk 0:02:15.4]} 17. Na4 {[%clk 0:02:03.6]} 17... Re8 {[%clk 0:01:56.1]} 18.
f3 {[%clk 0:01:53]} 18... Nb5 {[%clk 0:01:23.8]} 19. Nc4 {[%clk 0:01:44.8]}
19... Nd7 {[%clk 0:01:14]} 20. Qd2 {[%clk 0:01:29.9]} 20... Nc3 {[%clk
0:01:10.9]} 21. Nxc3 {[%clk 0:01:28.5]} 21... bxc3 {[%clk 0:01:10]} 22. Rxc3
{[%clk 0:01:24]} 22... Bxc3 {[%clk 0:01:05]} 23. Qxc3 {[%clk 0:01:23.9]} 23...
Ne5 {[%clk 0:00:59]} 24. Nxa5 {[%clk 0:01:13.1]} 24... Qh4 {[%clk 0:00:43.9]}
25. Nc6 {[%clk 0:00:30.2]} 25... Nxc6 {[%clk 0:00:38.1]} 26. dxc6 {[%clk
0:00:29.9]} 26... Be6 {[%clk 0:00:37.7]} 27. a4 {[%clk 0:00:29.9]} 27... Rb3
{[%clk 0:00:37]} 28. Qd4 {[%clk 0:00:29.6]} 28... d5 {[%clk 0:00:36.4]} 29. Bb5
{[%clk 0:00:27]} 29... dxe4 {[%clk 0:00:33.1]} 30. fxe4 {[%clk 0:00:23.4]} 30...
Rd8 {[%clk 0:00:26.4]} 31. Qc5 {[%clk 0:00:20.5]} 31... Qxe4 {[%clk 0:00:22.1]}
32. Bxh6 {[%clk 0:00:17.5]} 32... Rb2 {[%clk 0:00:18]} 33. Qg5 {[%clk
0:00:17.4]} 33... Rdd2 {[%clk 0:00:09.9]} 34. Qxd2 {[%clk 0:00:17]} 34... Rxd2
{[%clk 0:00:10.8]} 35. Bxd2 {[%clk 0:00:16.9]} 35... Bd5 {[%clk 0:00:09.6]} 36.
Rf2 {[%clk 0:00:16.7]} 36... Bxc6 {[%clk 0:00:09.8]} 37. Bxc6 {[%clk 0:00:15.8]}
37... Qxc6 {[%clk 0:00:10.7]} 38. a5 {[%clk 0:00:16.4]} 38... Qb5 {[%clk
0:00:09.3]} 39. h3 {[%clk 0:00:16.1]} 39... f5 {[%clk 0:00:06.6]} 40. h4 {[%clk
0:00:14.8]} 40... Kf7 {[%clk 0:00:04.8]} 41. g3 {[%clk 0:00:14.7]} 41... Qb1+
{[%clk 0:00:04.2]} 42. Kh2 {[%clk 0:00:14.7]} 42... Qd3 {[%clk 0:00:04.7]} 43.
Bf4 {[%clk 0:00:14]} 43... Qa3 {[%clk 0:00:04]} 44. Rd2 {[%clk 0:00:12.5]} 44...
Qxa5 {[%clk 0:00:02.9]} 45. Rd7+ {[%clk 0:00:12.5]} 45... Ke8 {[%clk 0:00:03.1]}
46. Rd2 {[%clk 0:00:13.1]} 46... Qc3 {[%clk 0:00:03]} 47. Rf2 {[%clk 0:00:12.7]}
47... Kf7 {[%clk 0:00:03]} 48. Rd2 {[%clk 0:00:12.7]} 48... Ke6 {[%clk
0:00:03.3]} 49. Kg2 {[%clk 0:00:13]} 49... Kf7 {[%clk 0:00:03.7]} 50. Kh2 {[%clk
0:00:13.1]} 50... Qc6 {[%clk 0:00:04.2]} 51. Re2 {[%clk 0:00:12.4]} 51... Qc3
{[%clk 0:00:04.6]} 52. Bg5 {[%clk 0:00:12.1]} 52... Qc4 {[%clk 0:00:04.6]} 53.
Rf2 {[%clk 0:00:11.5]} 53... Qd4 {[%clk 0:00:04.6]} 54. Rd2 {[%clk 0:00:11.1]}
54... Qc4 {[%clk 0:00:04.8]} 55. Bf4 {[%clk 0:00:11.3]} 55... Qb4 {[%clk
0:00:04.7]} 56. Kg2 {[%clk 0:00:11.5]} 56... Qb7+ {[%clk 0:00:04.4]} 57. Kh2
{[%clk 0:00:11.5]} 57... Qb3 {[%clk 0:00:05.3]} 58. Re2 {[%clk 0:00:11.4]} 58...
Qd3 {[%clk 0:00:05.3]} 59. Rd2 {[%clk 0:00:11.4]} 59... Qf3 {[%clk 0:00:05.8]}
60. Rc2 {[%clk 0:00:11.1]} 60... Qd3 {[%clk 0:00:05.7]} 61. Rd2 {[%clk
0:00:11.3]} 61... Qf3 {[%clk 0:00:05.3]} 62. Rc2 {[%clk 0:00:11.3]} 62... Qd3
{[%clk 0:00:05.3]} 63. Rd2 {[%clk 0:00:11.5]} 1/2-1/2